fUSD/lending_fUSD_20250208
["ID","MTS","AMOUNT","RATE_DAILY","PERIOD"]
[352348990,1739051447187,-500.0,0.00010547,2]
[352348992,1739051447197,-500.0,0.00010547,2]
[352348994,1739051447206,-500.0,0.00010547,2]
[352348996,1739051447216,-500.0,0.00010547,2]
[352348998,1739051447225,-500.0,0.00010547,2]
[352349000,1739051447234,-619.77,0.00010547,2]
[352349002,1739051447244,-500.0,0.00010547,2]
[352349004,1739051447254,-500.0,0.00010547,2]
[352349006,1739051447263,-500.0,0.00010547,2]
[352349008,1739051447272,-500.0,0.00010547,2]
[352349010,1739051447282,-500.0,0.00010547,2]
[352349012,1739051447291,-500.0,0.00010547,2]
[352349014,1739051447301,-500.0,0.00010547,2]
[352349016,1739051447310,-532.03,0.00010547,2]
[352349018,1739051447320,-500.0,0.00010547,2]
[352349020,1739051447330,-500.0,0.00010547,2]
[352349022,1739051447339,-500.0,0.00010547,2]
[352349024,1739051447348,-500.0,0.00010547,2]
[352349026,1739051447358,-631.29,0.00010679,2]
[352349028,1739051447368,-500.0,0.00010679,2]
[352349030,1739051447377,-893.91,0.00010679,2]
[352349032,1739051447387,-827.66,0.00010679,2]
[352349034,1739051447397,-579.85,0.00010679,2]
[352349036,1739051447406,-618.88,0.00010679,2]
[352349038,1739051447416,-752.75,0.00010679,2]
[352349040,1739051447425,-1000.0,0.00010679,2]
[352349042,1739051447434,-625.12,0.00010679,2]
[352349044,1739051447443,-670.12,0.00010679,2]
[352349046,1739051447453,-687.15,0.00010679,2]
[352349048,1739051447462,-151.0,0.0001068,2]
[352349051,1739051447473,-151.0,0.0001068,2]
[352349053,1739051447482,-500.0,0.00010682,2]
[352349055,1739051447492,-500.0,0.00010682,2]
[352349057,1739051447502,-328.234156,0.00010682,2]
[352349059,1739051447512,-336.201718,0.00010682,2]
[352349061,1739051447521,-500.0,0.00010682,2]
[352349063,1739051447531,-538.02,0.00010682,2]
[352349065,1739051447541,-556.49,0.00010682,2]
[352349067,1739051447551,-500.0,0.00010682,2]
[352349069,1739051447561,-500.0,0.00010682,2]
[352349071,1739051447570,-797.2,0.00010682,2]
[352349073,1739051447580,-727.05,0.00010682,2]
[352349075,1739051447590,-1132.11,0.00010682,2]
[352349077,1739051447600,-500.0,0.00010682,2]
[352349079,1739051447610,-530.32,0.00010682,2]
[352349081,1739051447620,-758.88,0.00010682,2]
[352349083,1739051447630,-676.14,0.00010682,2]
[352349086,1739051447640,-689.36,0.00010682,2]
[352349088,1739051447649,-500.0,0.00010683,2]
[352349090,1739051447659,-544.12,0.00010683,2]
[352349092,1739051447668,-500.0,0.00010683,2]
[352349094,1739051447679,-521.34,0.00010683,2]
[352349096,1739051447689,-500.0,0.00010683,2]
[352349097,1739051447699,-500.0,0.00010683,2]
[352349099,1739051447709,-559.66,0.00010683,2]
[352349100,1739051447718,-500.0,0.00010683,2]
[352349101,1739051447727,-646.59,0.00010683,2]
[352349102,1739051447736,-500.0,0.00010683,2]
[352349103,1739051447745,-500.0,0.00010683,2]
[352349104,1739051447755,-524.36,0.00010683,2]
[352349105,1739051447765,-500.0,0.00010683,2]
[352349106,1739051447774,-500.0,0.00010683,2]
[352349107,1739051447783,-500.0,0.00010683,2]
[352349108,1739051447793,-500.0,0.00010683,2]
[352349109,1739051447802,-506.43,0.00010683,2]
[352349110,1739051447811,-500.0,0.00010683,2]
[352349111,1739051447821,-500.0,0.00010683,2]
[352349112,1739051447830,-649.56,0.00010683,2]
[352349113,1739051447839,-500.0,0.00010683,2]
[352349114,1739051447848,-519.7,0.00010683,2]
[352349116,1739051447858,-500.0,0.00010683,2]
[352349118,1739051447867,-500.0,0.00010683,2]
[352349120,1739051447877,-196.38742028,0.00010683,2]
[352349129,1739051448146,-303.61257972,0.00010683,2]
[352349130,1739051448157,-500.0,0.00010683,2]
[352349131,1739051448168,-500.0,0.00010683,2]
[352349132,1739051448178,-55.58742033,0.00010683,2]
[352349133,1739051448292,-500.0,0.00010409,2]
[352349134,1739051448304,-500.0,0.00010546,2]
[352349136,1739051448314,-444.41257967,0.00010683,2]
[352349138,1739051448325,-401.44141523,0.00010683,2]
[352349139,1739051448338,-98.55858477,0.00010683,2]
[352349140,1739051448349,-154.67439531,0.00010683,2]
[352349141,1739051448364,-400.60560469,0.00010683,2]
[352349142,1739051448374,-500.0,0.00010683,2]
[352349143,1739051448385,-500.0,0.00010683,2]
[352349145,1739051448395,-500.0,0.00010683,2]
[352349147,1739051448407,-660.21,0.00010683,2]
[352349148,1739051448418,-500.0,0.00010683,2]
[352349149,1739051448429,-500.0,0.00010683,2]
[352349150,1739051448440,-557.58,0.00010683,2]
[352349151,1739051448451,-500.0,0.00010683,2]
[352349152,1739051448461,-687.24,0.00010683,2]
[352349153,1739051448472,-1236.42,0.00010683,2]
[352349154,1739051448483,-500.0,0.00010683,2]
[352349155,1739051448493,-500.0,0.00010683,2]
[352349156,1739051448504,-722.14,0.00010683,2]
[352349157,1739051448515,-500.0,0.00010683,2]
[352349158,1739051448525,-520.55,0.00010683,2]
[352349159,1739051448536,-414.09,0.00010683,2]
[352349160,1739051448547,-923.64,0.00010683,2]
[352349161,1739051448558,-508.18,0.00010683,2]
[352349162,1739051448569,-583.7,0.00010683,2]
[352349163,1739051448580,-793.59,0.00010683,2]
[352349164,1739051448592,-1017.47,0.00010683,2]
[352349165,1739051448867,-500.0,0.00010683,2]
[352349166,1739051448877,-1096.86,0.00010683,2]
[352349167,1739051448887,-500.0,0.00010683,2]
[352349168,1739051448898,-806.02,0.00010683,2]
[352349169,1739051448908,-500.0,0.00010683,2]
[352349170,1739051448918,-795.72,0.00010683,2]
[352349171,1739051448928,-500.0,0.00010683,2]
[352349172,1739051448938,-500.0,0.00010683,2]
[352349173,1739051448948,-500.0,0.00010683,2]
[352349174,1739051448957,-501.68,0.00010683,2]
[352349175,1739051448967,-1994.4,0.00010683,2]
[352349176,1739051448977,-751.33,0.00010683,2]
[352349177,1739051448987,-585.3,0.00010683,2]
[352349178,1739051448998,-501.11,0.00010683,2]
[352349179,1739051449007,-500.0,0.00010683,2]
[352349180,1739051449018,-618.01,0.00010683,2]
[352349181,1739051449028,-587.85802515,0.00010683,2]
[352349182,1739051449038,-500.0,0.00010683,2]
[352349183,1739051449049,-654.19,0.00010683,2]
[352349184,1739051449060,-762.05,0.00010683,2]
[352349185,1739051449072,-500.0,0.00010683,2]
[352349186,1739051449082,-500.0,0.00010683,2]
[352349187,1739051449094,-500.0,0.00010683,2]
[352349188,1739051449105,-1395.27,0.00010683,2]
[352349189,1739051449119,-647.11,0.00010683,2]
[352349190,1739051449131,-539.1,0.00010683,2]
[352349191,1739051449142,-500.0,0.00010683,2]
[352349192,1739051449152,-626.51,0.00010683,2]
[352349193,1739051449163,-500.0,0.00010683,2]
[352349194,1739051449174,-670.57,0.00010683,2]
[352349195,1739051449184,-500.0,0.00010683,2]
[352349196,1739051449196,-500.0,0.00010683,2]
[352349197,1739051449208,-595.69,0.00010683,2]
[352349198,1739051449218,-500.0,0.00010683,2]
[352349199,1739051449229,-500.0,0.00010683,2]
[352349200,1739051449239,-500.0,0.00010683,2]
[352349201,1739051449250,-500.0,0.00010683,2]
[352349202,1739051449260,-500.0,0.00010683,2]
[352349203,1739051449271,-500.0,0.00010683,2]
[352349204,1739051449281,-685.18,0.00010683,2]
[352349205,1739051449292,-601.0,0.00010683,2]
[352349206,1739051449302,-703.93,0.00010683,2]
[352349207,1739051449313,-500.0,0.00010683,2]
[352349208,1739051449325,-946.69,0.00010683,2]
[352349209,1739051449336,-871.08,0.00010683,2]
[352349210,1739051449346,-872.3,0.00010683,2]
[352349211,1739051449357,-500.0,0.00010683,2]
[352349212,1739051449367,-500.0,0.00010683,2]
[352349213,1739051449378,-738.63,0.00010683,2]
[352349214,1739051449389,-573.64,0.00010683,2]
[352349215,1739051449400,-500.0,0.00010683,2]
[352349216,1739051449411,-500.0,0.00010683,2]
[352349217,1739051449422,-744.48,0.00010683,2]
[352349218,1739051449433,-783.63,0.00010683,2]
[352349219,1739051449443,-500.0,0.00010683,2]
[352349220,1739051449454,-500.0,0.00010683,2]
[352349221,1739051449465,-747.33,0.00010683,2]
[352349222,1739051449475,-500.0,0.00010683,2]
[352349223,1739051449486,-500.0,0.00010683,2]
[352349224,1739051449496,-528.94,0.00010683,2]
[352349225,1739051449508,-500.0,0.00010683,2]
[352349226,1739051449519,-783.08,0.00010683,2]
[352349227,1739051449530,-560.53,0.00010683,2]
[352349228,1739051449541,-500.0,0.00010683,2]
[352349229,1739051449552,-500.0,0.00010683,2]
[352349230,1739051449562,-500.0,0.00010683,2]
[352349231,1739051449573,-151.0,0.00010684,2]
[352349232,1739051449583,-500.0,0.00010684,2]
[352349233,1739051449594,-500.0,0.00010684,2]
[352349234,1739051449604,-500.0,0.00010684,2]
[352349235,1739051449614,-500.0,0.00010684,2]
[352349236,1739051449624,-500.0,0.00010684,2]
[352349237,1739051449634,-500.0,0.00010684,2]
[352349238,1739051449644,-500.0,0.00010684,2]
[352349239,1739051449654,-500.0,0.00010684,2]
[352349240,1739051449664,-500.0,0.00010684,2]
[352349241,1739051449673,-500.0,0.00010684,2]
[352349242,1739051449683,-500.0,0.00010684,2]
[352349243,1739051449692,-500.0,0.00010684,2]
[352349244,1739051449702,-500.0,0.00010684,2]
[352349245,1739051449712,-500.0,0.00010684,2]
[352349246,1739051449722,-500.0,0.00010684,2]
[352349247,1739051449732,-500.0,0.00010684,2]
[352349248,1739051449741,-500.0,0.00010684,2]
[352349249,1739051449750,-500.0,0.00010684,2]
[352349250,1739051449760,-500.0,0.00010684,2]
[352349251,1739051449771,-500.0,0.00010684,2]
[352349252,1739051449780,-500.0,0.00010684,2]
[352349253,1739051449790,-619.77,0.00010684,2]
[352349254,1739051449800,-500.0,0.00010684,2]
[352349255,1739051449809,-500.0,0.00010684,2]
[352349256,1739051449820,-447.5513658,0.00010684,2]
[352349257,1739051449830,-500.0,0.00010684,2]
[352349258,1739051449840,-500.0,0.00010684,2]
[352349259,1739051449851,-500.0,0.00010684,2]
[352349260,1739051449861,-500.0,0.00010684,2]
[352349261,1739051449871,-532.03,0.00010684,2]
[352349262,1739051449881,-500.0,0.00010684,2]
[352349263,1739051449892,-500.0,0.00010684,2]
[352349264,1739051449902,-500.0,0.00010684,2]
[352349265,1739051449912,-500.0,0.00010684,2]
[352349266,1739051449921,-152.0,0.00010729,3]
[352349267,1739051449931,-1096.12196066,0.0001078,2]
[352349268,1739051449941,-151.0,0.0001078,2]
[352349269,1739051449951,-1128.0,0.00010799,2]
[352349270,1739051449963,-20949.05192959,0.00010799,2]
[352349271,1739051450005,-4892.76108,0.00010799,2]
[352349272,1739051450075,-48275.47836213,0.00010799,2]
[352349273,1739051450089,-1509.34,0.00010799,2]
[352349274,1739051450100,-4826.65,0.00010799,2]
[352349275,1739051450163,-41583.44154975,0.00010799,2]
[352349276,1739051450176,-489.04999834,0.00010799,2]
[352349277,1739051450189,-592.14361496,0.00010799,2]
[352349278,1739051450202,-8768.97521127,0.00010799,2]
[352349279,1739051450268,-589.18228509,0.00010799,2]
[352349280,1739051450280,-744.96847343,0.00010799,2]
[352349281,1739051450291,-453.8784,0.00010799,2]
[352349282,1739051450304,-4350.87690949,0.00010799,2]
[352349283,1739051450315,-2119.36000001,0.00010799,2]
[352349284,1739051450333,-240373.2703853,0.00010799,2]
[352349285,1739051450345,-631.29,0.00010816,2]
[352349286,1739051450355,-500.0,0.00010816,2]
[352349287,1739051450366,-893.91,0.00010816,2]
[352349288,1739051450376,-827.66,0.00010816,2]
[352349289,1739051450386,-579.85,0.00010816,2]
[352349290,1739051450396,-618.88,0.00010816,2]
[352349291,1739051450406,-752.75,0.00010816,2]
[352349292,1739051450415,-1000.0,0.00010816,2]
[352349293,1739051450427,-625.12,0.00010816,2]
[352349294,1739051450436,-670.12,0.00010816,2]
[352349295,1739051450446,-687.15,0.00010816,2]
[352349296,1739051450456,-151.0,0.00010818,2]
[352349297,1739051450466,-500.0,0.00010819,2]
[352349298,1739051450476,-328.234156,0.00010819,2]
[352349299,1739051450485,-336.201718,0.00010819,2]
[352349300,1739051450495,-500.0,0.00010819,2]
[352349301,1739051450505,-538.02,0.00010819,2]
[352349302,1739051450516,-556.49,0.00010819,2]
[352349303,1739051450526,-500.0,0.00010819,2]
[352349304,1739051450536,-500.0,0.00010819,2]
[352349305,1739051450546,-797.2,0.00010819,2]
[352349306,1739051450556,-727.05,0.00010819,2]
[352349307,1739051450566,-1132.11,0.00010819,2]
[352349308,1739051450577,-500.0,0.00010819,2]
[352349309,1739051450587,-530.32,0.00010819,2]
[352349310,1739051450596,-758.88,0.00010819,2]
[352349311,1739051450605,-676.14,0.00010819,2]
[352349312,1739051450615,-689.36,0.00010819,2]
[352349313,1739051450624,-500.0,0.0001082,2]
[352349314,1739051450634,-544.12,0.0001082,2]
[352349315,1739051450644,-500.0,0.0001082,2]
[352349316,1739051450653,-521.34,0.0001082,2]
[352349317,1739051450663,-500.0,0.0001082,2]
[352349318,1739051450674,-500.0,0.0001082,2]
[352349319,1739051450685,-559.66,0.0001082,2]
[352349320,1739051450694,-500.0,0.0001082,2]
[352349321,1739051450704,-646.59,0.0001082,2]
[352349322,1739051450713,-500.0,0.0001082,2]
[352349323,1739051450723,-500.0,0.0001082,2]
[352349324,1739051450732,-524.36,0.0001082,2]
[352349325,1739051450742,-500.0,0.0001082,2]
[352349326,1739051450752,-500.0,0.0001082,2]
[352349327,1739051450762,-500.0,0.0001082,2]
[352349328,1739051450771,-500.0,0.0001082,2]
[352349329,1739051450781,-506.43,0.0001082,2]
[352349330,1739051450790,-500.0,0.0001082,2]
[352349331,1739051450800,-500.0,0.0001082,2]
[352349332,1739051450809,-649.56,0.0001082,2]
[352349333,1739051450818,-500.0,0.0001082,2]
[352349334,1739051450828,-519.7,0.0001082,2]
[352349335,1739051450837,-500.0,0.0001082,2]
[352349336,1739051450847,-500.0,0.0001082,2]
[352349337,1739051450857,-500.0,0.0001082,2]
[352349338,1739051450867,-500.0,0.0001082,2]
[352349339,1739051450877,-500.0,0.0001082,2]
[352349340,1739051450887,-500.0,0.0001082,2]
[352349341,1739051450897,-500.0,0.0001082,2]
[352349342,1739051450906,-555.28,0.0001082,2]
[352349343,1739051450916,-500.0,0.0001082,2]
[352349344,1739051450926,-500.0,0.0001082,2]
[352349345,1739051450935,-500.0,0.0001082,2]
[352349346,1739051450945,-660.21,0.0001082,2]
[352349347,1739051450954,-500.0,0.0001082,2]
[352349348,1739051450964,-500.0,0.0001082,2]
[352349349,1739051450974,-557.58,0.0001082,2]
[352349350,1739051450983,-500.0,0.0001082,2]
[352349351,1739051450993,-687.24,0.0001082,2]
[352349352,1739051451003,-1236.42,0.0001082,2]
[352349353,1739051451013,-500.0,0.0001082,2]
[352349354,1739051451023,-500.0,0.0001082,2]
[352349355,1739051451032,-722.14,0.0001082,2]
[352349356,1739051451042,-500.0,0.0001082,2]
[352349357,1739051451052,-520.55,0.0001082,2]
[352349358,1739051451062,-923.64,0.0001082,2]
[352349359,1739051451072,-508.18,0.0001082,2]
[352349360,1739051451081,-583.7,0.0001082,2]
[352349361,1739051451091,-793.59,0.0001082,2]
[352349362,1739051451100,-1017.47,0.0001082,2]
[352349363,1739051451111,-500.0,0.0001082,2]
[352349364,1739051451123,-1096.86,0.0001082,2]
[352349365,1739051451133,-500.0,0.0001082,2]
[352349366,1739051451189,-806.02,0.0001082,2]
[352349367,1739051451198,-647.16769473,0.0001082,2]
[352349368,1739051451207,-795.72,0.0001082,2]
[352349369,1739051451217,-500.0,0.0001082,2]
[352349370,1739051451226,-500.0,0.0001082,2]
[352349371,1739051451236,-500.0,0.0001082,2]
[352349372,1739051451246,-501.68,0.0001082,2]
[352349373,1739051451255,-1994.4,0.0001082,2]
[352349374,1739051451265,-751.33,0.0001082,2]
[352349375,1739051451274,-585.3,0.0001082,2]
[352349376,1739051451284,-501.11,0.0001082,2]
[352349377,1739051451294,-500.0,0.0001082,2]
[352349378,1739051451303,-618.01,0.0001082,2]
[352349379,1739051451313,-500.0,0.0001082,2]
[352349380,1739051451322,-654.19,0.0001082,2]
[352349381,1739051451331,-762.05,0.0001082,2]
[352349382,1739051451341,-500.0,0.0001082,2]
[352349383,1739051451349,-500.0,0.0001082,2]
[352349384,1739051451360,-500.0,0.0001082,2]
[352349385,1739051451369,-1395.27,0.0001082,2]
[352349386,1739051451379,-647.11,0.0001082,2]
[352349387,1739051451390,-539.1,0.0001082,2]
[352349388,1739051451400,-500.0,0.0001082,2]
[352349389,1739051451410,-626.51,0.0001082,2]
[352349390,1739051451419,-500.0,0.0001082,2]
[352349391,1739051451428,-670.57,0.0001082,2]
[352349392,1739051451438,-500.0,0.0001082,2]
[352349393,1739051451447,-402.8,0.0001082,2]
[352349394,1739051451457,-595.69,0.0001082,2]
[352349395,1739051451469,-500.0,0.0001082,2]
[352349396,1739051451479,-500.0,0.0001082,2]
[352349397,1739051451489,-449.99055327,0.0001082,2]
[352349398,1739051451500,-500.0,0.0001082,2]
[352349399,1739051451510,-500.0,0.0001082,2]
[352349400,1739051451520,-500.0,0.0001082,2]
[352349401,1739051451530,-685.18,0.0001082,2]
[352349402,1739051451539,-601.0,0.0001082,2]
[352349403,1739051451549,-703.93,0.0001082,2]
[352349404,1739051451558,-500.0,0.0001082,2]
[352349405,1739051451568,-946.69,0.0001082,2]
[352349406,1739051451577,-871.08,0.0001082,2]
[352349407,1739051451587,-872.3,0.0001082,2]
[352349408,1739051451596,-500.0,0.0001082,2]
[352349409,1739051451606,-500.0,0.0001082,2]
[352349410,1739051451615,-738.63,0.0001082,2]
[352349411,1739051451624,-573.64,0.0001082,2]
[352349412,1739051451633,-586.48818829,0.0001082,2]
[352349413,1739051451642,-500.0,0.0001082,2]
[352349414,1739051451652,-744.48,0.0001082,2]
[352349415,1739051451662,-783.63,0.0001082,2]
[352349416,1739051451671,-500.0,0.0001082,2]
[352349417,1739051451680,-500.0,0.0001082,2]
[352349418,1739051451690,-747.33,0.0001082,2]
[352349419,1739051451699,-500.0,0.0001082,2]
[352349420,1739051451709,-500.0,0.0001082,2]
[352349421,1739051451718,-528.94,0.0001082,2]
[352349422,1739051451727,-385.20771926,0.0001082,2]
[352349423,1739051451737,-783.08,0.0001082,2]
[352349424,1739051451747,-560.53,0.0001082,2]
[352349425,1739051451757,-500.0,0.0001082,2]
[352349426,1739051451767,-500.0,0.0001082,2]
[352349427,1739051451776,-500.0,0.0001082,2]
[352349428,1739051451785,-500.0,0.00010821,2]
[352349429,1739051451795,-500.0,0.00010821,2]
[352349430,1739051451804,-500.0,0.00010821,2]
[352349431,1739051451814,-500.0,0.00010821,2]
[352349432,1739051451823,-239.23623104,0.00010821,2]
[352349433,1739051451833,-500.0,0.00010821,2]
[352349434,1739051451842,-500.0,0.00010821,2]
[352349435,1739051451851,-500.0,0.00010821,2]
[352349436,1739051451860,-569.62881246,0.00010821,2]
[352349437,1739051451869,-500.0,0.00010821,2]
[352349438,1739051451878,-500.0,0.00010821,2]
[352349439,1739051451887,-500.0,0.00010821,2]
[352349440,1739051451896,-500.0,0.00010821,2]
[352349441,1739051451906,-500.0,0.00010821,2]
[352349442,1739051451915,-500.0,0.00010821,2]
[352349443,1739051451925,-500.0,0.00010821,2]
[352349444,1739051451935,-500.0,0.00010821,2]
[352349445,1739051451944,-500.0,0.00010821,2]
[352349446,1739051451954,-500.0,0.00010821,2]
[352349447,1739051451963,-500.0,0.00010821,2]
[352349448,1739051451973,-619.77,0.00010821,2]
[352349449,1739051451982,-500.0,0.00010821,2]
[352349450,1739051451991,-500.0,0.00010821,2]
[352349451,1739051452000,-500.0,0.00010821,2]
[352349452,1739051452011,-500.0,0.00010821,2]
[352349453,1739051452020,-275.17755416,0.00010821,2]
[352349454,1739051452030,-500.0,0.00010821,2]
[352349455,1739051452040,-532.03,0.00010821,2]
[352349456,1739051452050,-500.0,0.00010821,2]
[352349457,1739051452059,-500.0,0.00010821,2]
[352349458,1739051452069,-500.0,0.00010821,2]
[352349459,1739051452078,-500.0,0.00010821,2]
[352349460,1739051452088,-2134.111456,0.00010832,2]
[352349461,1739051452099,-150.0,0.00010833,2]
[352349462,1739051452108,-638.0,0.00010833,2]
[352349463,1739051452121,-150.0,0.00010833,2]
[352349464,1739051452130,-41519.81532168,0.00010835,2]
[352349465,1739051452139,-2134.111456,0.00010859,2]
[352349466,1739051452149,-250.0,0.0001086,2]
[352349467,1739051452158,-2134.111456,0.00010864,2]
[352349468,1739051452167,-2134.111456,0.00010895,2]
[352349469,1739051452177,-374.51436308,0.000109,2]
[352349470,1739051452186,-230.54378324,0.000109,2]
[352349471,1739051452197,-313.99083196,0.000109,2]
[352349472,1739051452206,-313.99083196,0.000109,2]
[352349473,1739051452215,-313.99083196,0.000109,2]
[352349474,1739051452225,-313.99083196,0.000109,2]
[352349475,1739051452235,-313.99083196,0.000109,2]
[352349476,1739051452244,-313.99083196,0.000109,2]
[352349477,1739051452253,-313.99083196,0.000109,2]
[352349478,1739051452263,-1000.0,0.00010927,2]
[352349479,1739051452272,-631.29,0.00010953,2]
[352349480,1739051452282,-500.0,0.00010953,2]
[352349481,1739051452292,-893.91,0.00010953,2]
[352349482,1739051452301,-827.66,0.00010953,2]
[352349483,1739051452311,-579.85,0.00010953,2]
[352349484,1739051452319,-618.88,0.00010953,2]
[352349485,1739051452328,-752.75,0.00010953,2]
[352349486,1739051452338,-648.99057423,0.00010953,2]
[352349487,1739051452347,-625.12,0.00010953,2]
[352349488,1739051452359,-670.12,0.00010953,2]
[352349489,1739051452370,-687.15,0.00010953,2]
[352349490,1739051452381,-151.0,0.00010954,2]
[352349491,1739051452390,-281.261313,0.00010955,2]
[352349492,1739051452400,-500.0,0.00010956,2]
[352349493,1739051452410,-328.234156,0.00010956,2]
[352349494,1739051452420,-336.201718,0.00010956,2]
[352349495,1739051452430,-500.0,0.00010956,2]
[352349496,1739051452440,-538.02,0.00010956,2]
[352349497,1739051452450,-556.49,0.00010956,2]
[352349498,1739051452459,-500.0,0.00010956,2]
[352349499,1739051452468,-500.0,0.00010956,2]
[352349500,1739051452477,-797.2,0.00010956,2]
[352349501,1739051452486,-727.05,0.00010956,2]
[352349502,1739051452496,-1132.11,0.00010956,2]
[352349503,1739051452505,-500.0,0.00010956,2]
[352349504,1739051452514,-530.32,0.00010956,2]
[352349505,1739051452523,-758.88,0.00010956,2]
[352349506,1739051452532,-676.14,0.00010956,2]
[352349507,1739051452541,-689.36,0.00010956,2]
[352349508,1739051452550,-500.0,0.00010957,2]
[352349509,1739051452559,-544.12,0.00010957,2]
[352349510,1739051452568,-500.0,0.00010957,2]
[352349511,1739051452577,-521.34,0.00010957,2]
[352349512,1739051452586,-500.0,0.00010957,2]
[352349513,1739051452595,-500.0,0.00010957,2]
[352349514,1739051452604,-559.66,0.00010957,2]
[352349515,1739051452613,-500.0,0.00010957,2]
[352349516,1739051452622,-646.59,0.00010957,2]
[352349517,1739051452631,-500.0,0.00010957,2]
[352349518,1739051452640,-500.0,0.00010957,2]
[352349519,1739051452649,-524.36,0.00010957,2]
[352349520,1739051452658,-500.0,0.00010957,2]
[352349521,1739051452667,-500.0,0.00010957,2]
[352349522,1739051452675,-500.0,0.00010957,2]
[352349523,1739051452684,-500.0,0.00010957,2]
[352349524,1739051452693,-506.43,0.00010957,2]
[352349525,1739051452702,-642.16355644,0.00010957,2]
[352349526,1739051452711,-500.0,0.00010957,2]
[352349527,1739051452720,-649.56,0.00010957,2]
[352349528,1739051452729,-500.0,0.00010957,2]
[352349529,1739051452738,-519.7,0.00010957,2]
[352349530,1739051452747,-500.0,0.00010957,2]
[352349531,1739051452755,-500.0,0.00010957,2]
[352349532,1739051452764,-500.0,0.00010957,2]
[352349533,1739051452773,-500.0,0.00010957,2]
[352349534,1739051452782,-500.0,0.00010957,2]
[352349535,1739051452791,-500.0,0.00010957,2]
[352349536,1739051452800,-500.0,0.00010957,2]
[352349537,1739051452809,-555.28,0.00010957,2]
[352349538,1739051452817,-500.0,0.00010957,2]
[352349539,1739051452826,-500.0,0.00010957,2]
[352349540,1739051452836,-500.0,0.00010957,2]
[352349541,1739051452846,-660.21,0.00010957,2]
[352349542,1739051452855,-500.0,0.00010957,2]
[352349543,1739051452865,-500.0,0.00010957,2]
[352349544,1739051452874,-557.58,0.00010957,2]
[352349545,1739051452884,-500.0,0.00010957,2]
[352349546,1739051452893,-687.24,0.00010957,2]
[352349547,1739051452903,-1236.42,0.00010957,2]
[352349548,1739051452912,-500.0,0.00010957,2]
[352349549,1739051452921,-500.0,0.00010957,2]
[352349550,1739051452931,-722.14,0.00010957,2]
[352349551,1739051452940,-500.0,0.00010957,2]
[352349552,1739051452949,-520.55,0.00010957,2]
[352349553,1739051452958,-923.64,0.00010957,2]
[352349554,1739051452967,-508.18,0.00010957,2]
[352349555,1739051452977,-583.7,0.00010957,2]
[352349556,1739051452986,-793.59,0.00010957,2]
[352349557,1739051452996,-1017.47,0.00010957,2]
[352349558,1739051453006,-1096.86,0.00010957,2]
[352349559,1739051453015,-500.0,0.00010957,2]